Cogmind - Beta 16.1 @@@ ROGUE MODE // 2026.04.09 @ 21:54:14 Player: Foongus0298 Result: Destroyed by S-43 Plague with Heavy Machine Gun Performance ------------- Evolutions (8) 4000 Regions Visited (15) 3000 Robots Destroyed (187) 935 Value Destroyed (7076) 7076 Prototype IDs (14) 280 Alien Tech Used (0) 0 Bonus (515) 515 TOTAL SCORE: 15806 Bonus ------- High Alert Combat Kills 478 Follower Combat Kills 37 Cogmind --------- Core Integrity 0/1450 Matter 0/300 Energy 100/100 System Corruption 13% Temperature Cool (0) Movement Core (50) Location -2/Research Parts ------- > --- POWER (3) -------- (None) > --- PROPULSION (4) --- (None) > --- UTILITY (12) ----- (None) > --- WEAPON (4) ------- (None) > --- INVENTORY (5) ---- Quantum Reactor Improved Thunder Leg Advanced Coolant Injector Linear Accelerator Fusion Bomb Launcher Peak State ------------ > --- POWER ------------ Light Particle Reactor Micro Antimatter Reactor Light Quantum Reactor > --- PROPULSION ------- Wheel Compact Wheel Compact Wheel > --- UTILITY ---------- Improved Cryofiber Web Advanced Heat Sink Advanced Coolant Injector Huge Storage Unit Experimental Energy Well Advanced Signal Interpreter Advanced Target Analyzer Precision Energy Filter Advanced Powered Armor Advanced Powered Armor Advanced Force Field > --- WEAPON ----------- Quantum Rifle Nova Cannon Hardcell Cannon Linear Accelerator > --- INVENTORY -------- Light Antimatter Reactor Micro Antimatter Reactor Micro Antimatter Reactor Compact Wheel Compact Wheel Compact Wheel Advanced Heat Sink Advanced Heat Sink Advanced Coolant Injector Energy Filter Advanced Weapon Cycler Cloaking Device Advanced Powered Armor Advanced Powered Armor Advanced Powered Armor Advanced Force Field Component Analysis Suite Phase Gun Quantum Rifle Railgun Railgun Hypervelocity Railgun Enhanced Gauss Cannon Fusion Bomb Launcher Great Maul [Rating: 144] Favorites ----------- Power Heavy Deuterium Engine Engine Heavy Deuterium Engine Power Core Nuclear Core Reactor Light Antimatter Reactor Propulsion Compact Wheel Treads Advanced Heavy Treads Wheel Compact Wheel Utility Huge Storage Unit Device Improved Cryofiber Web Storage Huge Storage Unit Processor Advanced Visual Processing Unit Hackware System Shield Protection Advanced Powered Armor Weapon Assault Rifle Energy Gun Gatling Laser Energy Cannon Nova Cannon Ballistic Gun Assault Rifle Ballistic Cannon Enhanced Gauss Cannon Launcher Neutron Missile Launcher Impact Weapon Great Maul Build | -11 -10 -9 -8 -7 -7 -7 -6 -5 -4 -4 -4 -4 -3 -3 -2 ------- Run | Yrd Mat Mat Mat Fac Low Low Fac Fac Fac Upp Upp Zhi Pro Res Res Slots Evolved 16 | . . 2 2 2 . . 2 2 2 . . . . 2 2 Power 2 | . . . 1 . . . 1 . . . . . . . . Propulsion 2 | . . . . . . . . 1 . . . . . . 1 Utility 10 | . . 1 1 1 . . 1 1 2 . . . . 2 1 Weapon 2 | . . 1 . 1 . . . . . . . . . . . Parts Attached 148 | 6 4 12 12 24 1 11 5 8 7 1 3 . 9 41 4 Power 19 | 1 . 3 2 3 . 1 1 1 . . 1 . 1 4 1 Engine 8 | 1 . 2 1 2 . . 1 . . . . . 1 . . Core 5 | . . 1 1 1 . 1 . 1 . . . . . . . Reactor 6 | . . . . . . . . . . . 1 . . 4 1 Propulsion 21 | 2 1 2 1 3 . 1 . 2 . 1 . . 2 5 1 Treads 1 | . . . . . . . . . . . . . 1 . . Leg . | . . . . . . . . . . . . . . . . Wheel 20 | 2 1 2 1 3 . 1 . 2 . 1 . . 1 5 1 Hover . | . . . . . . . . . . . . . . . . Flight . | . . . . . . . . . . . . . . . . Utility 63 | 1 2 2 6 9 1 5 2 2 5 . 1 . 4 22 1 Device 25 | . 1 . 1 2 . 2 . 2 3 . 1 . 3 9 1 Storage 8 | 1 . 1 1 2 . 1 1 . . . . . . 1 . Processor 10 | . 1 . 3 1 . . . . 1 . . . 1 3 . Hackware 1 | . . . . 1 . . . . . . . . . . . Protection 19 | . . 1 1 3 1 2 1 . 1 . . . . 9 . Artifact . | . . . . . . . . . . . . . . . . Weapon 45 | 2 1 5 3 9 . 4 2 3 2 . 1 . 2 10 1 Energy Gun 11 | . . 2 1 . . 1 1 . 1 . . . 1 4 . Energy Cannon 2 | . . . . 1 . . . . . . . . . 1 . Ballistic Gun 20 | 2 . 3 1 4 . 2 1 2 . . 1 . 1 2 1 Ballistic Cannon 6 | . . . . 2 . 1 . 1 . . . . . 2 . Launcher 4 | . 1 . . 1 . . . . 1 . . . . 1 . Special Weapon . | . . . . . . . . . . . . . . . . Impact Weapon 2 | . . . 1 1 . . . . . . . . . . . Slashing Weapon . | . . . . . . . . . . . . . . . . Piercing Weapon . | . . . . . . . . . . . . . . . . Special Melee Weapon . | . . . . . . . . . . . . . . . . Unidentified Prototypes 12 | . . 2 1 5 . . . . 1 . . . . 3 . Parts Lost 72 | . . 4 1 7 . 11 1 . . . 3 . 16 22 7 Power 12 | . . 1 . 1 . 2 . . . . 1 . 3 3 1 Propulsion 16 | . . 1 . 4 . 2 . . . . 1 . 2 5 1 Utility 25 | . . . . 1 . 3 . . . . 1 . 8 9 3 Weapon 19 | . . 2 1 1 . 4 1 . . . . . 3 5 2 Highest Loss Streak 20 | . . 4 1 2 . 6 1 . . . 2 . 16 20 7 To Critical Strikes 1 | . . . . . . . . . . . . . . 1 . Average Backups 20 | 3 7 15 19 19 22 23 22 24 24 25 24 23 12 23 15 Power 2 | . 1 2 2 2 2 2 2 3 3 3 2 2 . 2 1 Propulsion 2 | 2 2 2 3 2 2 2 2 1 2 3 3 3 2 2 4 Utility 8 | . 1 3 6 7 10 11 11 13 11 11 10 10 5 10 4 Weapon 6 | . 3 6 7 6 8 7 6 7 7 8 8 8 5 7 4 Tool/Special . | . . . . . . . . . . . . . . . . Unused Backups 50 | . 6 6 7 8 . . 2 4 3 . . . . 6 8 Power 12 | . 1 3 2 2 . . . . 1 . . . . . 3 Propulsion 9 | . 4 . . 1 . . . . . . . . . 1 3 Utility 12 | . . . 2 . . . 1 1 2 . . . . 4 2 Weapon 17 | . 1 3 3 5 . . 1 3 . . . . . 1 . Tool/Special . | . . . . . . . . . . . . . . . . Average Slot Usage (%) 92 | . 88 97 99 97 100 97 92 93 93 98 98 94 83 97 38 Engine 7 | . 14 10 11 8 15 9 13 10 10 10 6 5 4 1 . Core 2 | . . . 6 5 . 3 6 5 5 5 5 5 . . . Reactor 3 | . . . . . . . . . . . 3 5 5 11 7 Wheel 12 | . 28 22 17 14 15 13 6 10 10 13 13 10 5 12 . Device 16 | . 3 9 5 12 13 12 12 17 24 25 24 26 32 25 3 Storage 8 | . 14 11 9 7 7 7 7 11 10 10 10 10 5 8 7 Processor 9 | . . 11 17 15 15 13 6 5 5 5 5 5 4 8 7 Protection 4 | . . 1 3 1 1 3 11 5 5 5 5 5 . 7 3 Energy Gun 5 | . . 2 9 8 7 4 8 1 3 5 5 5 9 6 3 Ballistic Gun 10 | . 26 28 16 15 7 10 9 13 11 10 10 10 2 3 . Ballistic Cannon 5 | . . . . 4 15 14 5 6 4 5 5 5 3 3 . Peak Build Rating 144 | 6 8 15 27 49 49 52 56 70 83 84 87 81 87 144 71 Average Rating 66 | 5 6 11 23 40 48 48 53 63 80 81 83 81 74 126 63 On Entrance 49 | . 6 8 14 26 49 49 46 55 70 81 82 81 81 87 51 Avg Prop Armor Cover (%) 11 | . . . . . . . . . . . . . 12 9 . Naked Turns 54 | . . . . . . . . . . . . . . . 54 Heaviest Build 228 | 14 16 57 67 122 134 134 136 151 170 167 179 172 183 228 130 Greatest Support 48 | 32 32 26 26 32 32 32 16 32 32 42 42 32 32 48 16 Greatest Overweight (x) 43 | . . 2 3 7 4 8 8 4 5 5 5 5 11 38 43 Average Overweight (x) 3 | . . 1 2 2 3 3 8 4 4 3 3 5 7 4 9 Largest Inventory Capacity 25 | 8 8 20 20 25 25 25 25 25 25 25 25 25 25 25 25 Average Capacity 23 | 7 8 19 20 20 25 25 25 25 25 25 25 25 25 25 23 Most Carried 25 | 6 8 20 20 23 23 25 25 25 25 25 25 23 23 25 17 Average Carried 20 | 4 7 15 19 19 22 23 22 24 24 25 24 23 12 23 15 Final Capacity 25 | 8 8 20 20 25 25 25 25 25 25 25 25 25 25 25 5 Final Carried 25 | 6 8 19 20 23 23 23 25 25 25 25 23 23 14 17 5 Class Distribution -------------------- 36% | Scavenger-Tank 24% | Skirmisher 15% | Tank 11% | Mutant 7% | Gunner Dominant Class ---------------- Mutant | -10/Materials Gunner | -9/Materials Skirmisher | -8/Materials Skirmisher | -7/Factory Skirmisher | -7/Lower Caves Skirmisher | -7/Lower Caves Tank | -6/Factory Tank | -5/Factory Scavenger-Tank | -4/Factory Scavenger-Tank | -4/Upper Caves Scavenger-Tank | -4/Upper Caves Scavenger-Tank | -4/Zhirov Gunner | -3/Proximity Caves Scavenger-Tank | -3/Research Mutant | -2/Research Resources | -11 -10 -9 -8 -7 -7 -7 -6 -5 -4 -4 -4 -4 -3 -3 -2 ----------- Run | Yrd Mat Mat Mat Fac Low Low Fac Fac Fac Upp Upp Zhi Pro Res Res Matter Collected 6571 | 168 132 655 361 853 301 976 122 149 33 173 352 . 513 1783 . Remotely . | . . . . . . . . . . . . . . . . Salvage Created 7498 | . 168 771 586 1263 170 505 86 207 30 98 248 . 549 2817 . Parts 360 | . 17 61 35 70 5 25 1 10 3 7 7 . 13 106 . Haulers Intercepted 4 | . . 1 1 2 . . . . . . . . . . . Recyclers Shooed 8 | . 1 1 . 4 . . . . . . . . . 2 . Parts Field Recycled . | . . . . . . . . . . . . . . . . Retrieved Matter . | . . . . . . . . . . . . . . . . Parts Self-Destructed 53 | . . . . . 5 24 . . . 7 6 . 11 . . Prevented . | . . . . . . . . . . . . . . . . Parts Restored . | . . . . . . . . . . . . . . . . Kills | -11 -10 -9 -8 -7 -7 -7 -6 -5 -4 -4 -4 -4 -3 -3 -2 ------- Run | Yrd Mat Mat Mat Fac Low Low Fac Fac Fac Upp Upp Zhi Pro Res Res Combat Hostiles Destroyed 135 | . 6 19 13 15 4 20 2 3 . 4 5 . 8 36 . Guns 79 | . 3 19 13 10 1 11 2 1 . 3 3 . 4 9 . Cannons 32 | . . . . 1 3 7 . 2 . 1 2 . . 16 . AOE 21 | . 3 . . 3 . 2 . . . . . . 3 10 . Classes Destroyed 16 | . 4 5 . 2 1 . . . . . 1 . 1 2 . Worker 10 | . 1 . 2 5 . . . . . . . . . 2 . Builder 8 | . . . . 4 . . . . . . . . . 4 . Tunneler 2 | . 1 . . . . . . 1 . . . . . . . Hauler 4 | . . 1 1 2 . . . . . . . . . . . Recycler 15 | . . 2 . 6 . . . . . . . . . 7 . Mechanic 1 | . . . . . . . . . . . . . . 1 . Drone 2 | . . . . . . . . . . . . . 2 . . Watcher 12 | . . 4 1 2 . . . . 1 . . . . 4 . Swarmer 45 | . 3 11 6 4 . 10 . . . 4 1 . . 6 . Grunt 47 | . 3 5 4 7 3 8 2 2 . . . . 6 7 . Brawler 3 | . . 1 1 . . 1 . . . . . . . . . Duelist 2 | . . . . . 1 1 . . . . . . . . . Sentry 12 | . . 2 2 2 . . . 1 . . . . . 5 . Hunter 10 | . . . . . . . . . . . 4 . . 6 . Programmer 13 | . . . . 2 . . . . . . . . . 11 . Heavy 1 | . . . . . . . . . . . . . . 1 . Packrat 3 | . . . . . . . . . . . . . 3 . . Best Kill Streak 17 | . 5 7 4 17 4 4 1 2 1 4 2 . 3 14 . Combat Bots Only 8 | . 3 6 3 4 4 4 1 2 . 4 2 . 3 8 . Max Kills in Single Turn 12 | . 3 1 1 12 1 2 1 1 1 1 1 . 2 7 . Gunslinging . | . . . . . . . . . . . . . . . . Exploded 5 | . 2 . . 2 . 2 . . . . . . 2 5 . Melee . | . . . . . . . . . . . . . . . . Uniques/NPCs Destroyed . | . . . . . . . . . . . . . . . . Combat | -11 -10 -9 -8 -7 -7 -7 -6 -5 -4 -4 -4 -4 -3 -3 -2 -------- Run | Yrd Mat Mat Mat Fac Low Low Fac Fac Fac Upp Upp Zhi Pro Res Res Hostile Shots Fired 1130 | . 26 72 34 79 21 70 8 9 . 12 107 . 120 419 153 Missed 338 | . 7 14 8 26 4 16 5 2 . 5 26 . 28 139 58 Hits 792 | . 19 58 26 53 17 54 3 7 . 7 81 . 92 280 95 Melee 16 | . . . . . 4 7 . . . . . . . 5 . Projectile 776 | . 19 58 26 53 13 47 3 7 . 7 81 . 92 275 95 Critical Strikes 48 | . 1 1 . 2 2 1 . 1 . . 1 . 4 24 11 Part Disruptions 4 | . . . . . . . . . . . . . . 4 . Damage Taken 13947 | . 234 531 361 854 351 2004 58 155 . 53 950 . 1610 4598 2188 Core 2871 | . 38 50 26 127 55 279 . . . . 167 . 190 481 1458 Absorbed by Shields 3024 | . . . . . . . . . . 58 525 . 226 2215 . Regen/Repaired (Parts) 449 | . . 173 157 . . . . 119 . . . . . . . Core Remaining (%) 81 | 100 84 87 95 . . 34 100 100 . . . . 68 63 . Volleys Fired 390 | . 16 48 29 42 5 49 12 7 2 4 24 2 30 107 13 Largest 4 | . 2 3 3 4 4 4 4 4 4 4 4 4 4 4 1 Hottest 330 | . 53 96 99 160 160 176 228 150 201 201 201 198 209 330 88 Shots Fired 1235 | . 32 143 87 162 21 134 44 28 7 16 95 8 71 374 13 Gun 874 | . 28 143 87 145 11 58 32 20 5 12 72 6 59 183 13 Cannon 334 | . . . . 17 9 72 12 8 2 4 23 2 7 178 . Launcher 27 | . 4 . . . 1 4 . . . . . . 5 13 . Special . | . . . . . . . . . . . . . . . . Kinetic 800 | . 28 135 58 106 15 121 33 28 6 12 71 6 23 156 2 Thermal 408 | . . 8 29 56 5 9 11 . 1 4 24 2 43 205 11 Explosive 27 | . 4 . . . 1 4 . . . . . . 5 13 . Electromagnetic . | . . . . . . . . . . . . . . . . Robot Hit Streak 19 | . 6 12 8 11 5 4 5 9 3 5 5 . 9 19 4 Robot Miss Streak 9 | . 6 9 4 5 3 7 8 3 2 2 4 . 5 7 2 Penetration Max 1 | . . . . . . . . . . . . . . 1 . Secondary Targets 11 | . 1 8 1 . . . . . . . . . 1 . . Max Gunslinging Chain 1 | . 1 1 1 . . . . . . . . . 1 . . Shots Hit Robots 659 | . 19 81 48 87 11 45 23 18 4 8 38 . 45 223 9 Core Hits 359 | . 10 37 26 54 7 36 13 13 3 5 13 . 30 111 1 Critical Kills 10 | . . . . 1 . . . . . . 1 . 2 6 . Critical Parts Destroyed 11 | . . 1 . . . . 1 1 . 1 4 . 1 2 . Critical Strikes 39 | . . 1 1 1 . 1 1 2 . 1 6 . 3 20 2 Burn 7 | . . . 1 . . 1 . . . . . . . 3 2 Meltdown 1 | . . . . 1 . . . . . . . . . . . Destroy 21 | . . 1 . . . . 1 1 . 1 5 . 3 9 . Blast 10 | . . . . . . . . 1 . . 1 . . 8 . Melee Attacks 16 | . . . 1 4 . . 1 . 1 . . . . 4 5 Impact 16 | . . . 1 4 . . 1 . 1 . . . . 4 5 Slashing . | . . . . . . . . . . . . . . . . Piercing . | . . . . . . . . . . . . . . . . Sneak Attacks . | . . . . . . . . . . . . . . . . Combat Hostiles . | . . . . . . . . . . . . . . . . Follow-up Attacks . | . . . . . . . . . . . . . . . . Damage Inflicted 21274 | . 684 1079 743 3217 323 1380 494 441 84 162 693 . 1498 10170 306 Guns 9445 | . 239 1079 743 1396 125 494 324 213 52 126 452 . 971 3022 209 Cannons 5920 | . . . . 282 148 481 170 134 32 36 241 . 142 4254 . Explosions 5812 | . 445 . . 1539 50 405 . 94 . . . . 385 2894 . Melee 94 | . . . . . . . . . . . . . . . 94 Ramming 3 | . . . . . . . . . . . . . . . 3 Kinetic 8389 | . 239 962 454 1113 177 879 323 347 84 135 450 . 360 2845 21 Thermal 8375 | . . 117 289 1964 96 96 171 . . 27 243 . 753 4431 188 Explosive 4179 | . 445 . . . 50 405 . . . . . . 385 2894 . Electromagnetic 234 | . . . . 140 . . . 94 . . . . . . . Impact 94 | . . . . . . . . . . . . . . . 94 Slashing . | . . . . . . . . . . . . . . . . Piercing . | . . . . . . . . . . . . . . . . Highest Corruption 26 | . . . . 1 1 26 . 1 . . . . . 23 13 Average Corruption 4 | . . . . 1 1 5 . 1 . . . . . 8 9 Corruption Purged . | . . . . . . . . . . . . . . . . Corruption Blocked . | . . . . . . . . . . . . . . . . Effects 85 | . . . . 12 3 31 . . . . . . . 34 5 Message Errors 20 | . . . . 5 1 6 . . . . . . . 6 2 Matter Fused 27 | . . . . 3 1 12 . . . . . . . 10 1 Heat Flow Errors 8 | . . . . 2 . 1 . . . . . . . 4 1 Energy Discharges 8 | . . . . . . 5 . . . . . . . 2 1 Parts Rejected 3 | . . . . . . . . . . . . . . 3 . Parts Fused 1 | . . . . . . . . . . . . . . 1 . Data Loss (minor) 5 | . . . . . . 1 . . . . . . . 4 . Data Loss (major) 3 | . . . . 1 . 1 . . . . . . . 1 . Misfires 4 | . . . . . 1 2 . . . . . . . 1 . Weapon Failures 6 | . . . . 1 . 3 . . . . . . . 2 . Overload Shots . | . . . . . . . . . . . . . . . . Overflow Damage 769 | . 18 . . 354 . . 18 . . . . . 20 321 38 Projectiles 293 | . . . . 16 . . 18 . . . . . . 259 . Explosions 438 | . 18 . . 338 . . . . . . . . 20 62 . Melee 38 | . . . . . . . . . . . . . . . 38 Knockbacks 27 | . . . . 1 2 5 . 1 . . 5 . . 13 . Impact . | . . . . . . . . . . . . . . . . Kinetic 26 | . . . . 1 1 5 . 1 . . 5 . . 13 . Secondary 1 | . . . . . 1 . . . . . . . . . . Self-Inflicted Damage 468 | . 23 . . 229 . 63 . 20 . . . . . 132 1 Shots 11 | . 1 . . 4 . 1 . 1 . . . . . 4 . Rammed 1 | . . . . . . . . . . . . . . . 1 Targets Rammed 1 | . . . . . . . . . . . . . . . 1 Kicked . | . . . . . . . . . . . . . . . . Crushed . | . . . . . . . . . . . . . . . . Highest Temperature 523 | . 9 81 372 262 153 254 523 . . 52 239 102 441 198 164 Average Temperature 103 | . 5 42 118 77 88 77 178 . . 25 109 51 179 86 90 Received Heat Transfer 1890 | . 105 123 171 201 135 234 27 81 . . . . 451 362 . Effects 12 | . . . 1 . . 3 4 . . . 3 . 1 . . Shutdowns 2 | . . . . . . . 2 . . . . . . . . Energy Bleed 2 | . . . 1 . . . . . . . . . 1 . . Interference 7 | . . . . . . 3 1 . . . 3 . . . . Damage (minor) 1 | . . . . . . . 1 . . . . . . . . Siege Activations . | . . . . . . . . . . . . . . . . Martial Activations . | . . . . . . . . . . . . . . . . Shielding Activations . | . . . . . . . . . . . . . . . . Robots Disrupted . | . . . . . . . . . . . . . . . . Combat Hostiles . | . . . . . . . . . . . . . . . . Robots Corrupted . | . . . . . . . . . . . . . . . . Combat Hostiles . | . . . . . . . . . . . . . . . . Parts Fried 1 | . . . . 1 . . . . . . . . . . . Impact Corruptions 1 | . . . . . . . . . . . . . . . 1 Robots Melted 3 | . . . . 1 . . . . . . . . 1 1 . Combat Hostiles 3 | . . . . 1 . . . . . . . . 1 1 . Parts Melted 15 | . . . 1 5 . . . . . . . . . 9 . Heat Transferred 11433 | . . 259 703 2036 185 272 400 . . 37 333 . 1585 5253 370 Parts Sabotaged . | . . . . . . . . . . . . . . . . Parts Stolen . | . . . . . . . . . . . . . . . . Parts Stripped . | . . . . . . . . . . . . . . . . Power Chain Reactions . | . . . . . . . . . . . . . . . . Alert | -11 -10 -9 -8 -7 -7 -7 -6 -5 -4 -4 -4 -4 -3 -3 -2 ------- Run | Yrd Mat Mat Mat Fac Low Low Fac Fac Fac Upp Upp Zhi Pro Res Res Maximum Alert Level 3 | . . 1 1 2 . . . . . . . . . 3 1 Low Security (%) 61 | 100 100 72 94 34 . . 100 100 100 . . . . 35 52 Level 1 21 | . . 27 5 29 . . . . . . . . . 27 47 Level 2 16 | . . . . 36 . . . . . . . . . 33 . Level 3 . | . . . . . . . . . . . . . . 2 . Level 4 . | . . . . . . . . . . . . . . . . Level 5 . | . . . . . . . . . . . . . . . . High Security . | . . . . . . . . . . . . . . . . Max Security . | . . . . . . . . . . . . . . . . Peak Influence 796 | . 152 295 219 601 . . 88 86 37 . . . . 796 367 Initial 450 | . . 46 110 100 . . 77 . 37 . . . . 450 367 Average 200 | . 63 156 94 314 . . 41 5 6 . . . . 319 192 Influence Increases 5322 | . 203 559 476 946 90 460 151 145 11 90 165 . 155 1856 15 Destroy 0b10 Robot/C 2680 | . 120 380 260 300 80 400 60 60 . 80 100 . 120 720 . Destroy 0b10 Robot/NC 270 | . 10 35 20 95 . . . 5 5 . . . 10 90 . Destroy Leader 552 | . 30 80 54 78 10 60 10 20 2 10 20 . 10 168 . Allied During Kill 3 | . . . . . . . 3 . . . . . . . . Successful Hack 167 | . 15 19 36 69 . . 14 14 . . . . . . . Select Force Hacks 60 | . . 30 . . . . 30 . . . . . . . . Disable Machine 510 | . . . 30 315 . . 30 15 . . . . . 120 . Destroy Structure 435 | . 28 . 1 74 . . 4 16 4 . . . . 308 . Advance Influence 450 | . . . . . . . . . . . . . . 450 . Lose Combat Pursuer 195 | . . 15 75 15 . . . 15 . . 45 . 15 . 15 Influence Decreases 5315 | . 91 408 519 664 327 602 274 67 89 90 165 . 155 1202 662 Entered New Map 951 | . . 66 153 120 187 51 46 . 41 . . . . . 287 Time Decay 3429 | . 91 302 356 474 140 441 218 67 48 90 145 . 115 632 310 Search Patrol Dispatched 200 | . . . . . . . . . . . . . . 200 . Lost Part 585 | . . 40 10 70 . 110 10 . . . 20 . 40 220 65 Purge Threat 150 | . . . . . . . . . . . . . . 150 . Squads Dispatched 25 | . 1 2 . 7 . . 3 2 . . . . . 9 1 Investigation 4 | . . 1 . 1 . . 1 1 . . . . . . . Extermination 10 | . . . . 2 . . 1 1 . . . . . 5 1 Reinforcement 5 | . 1 1 . . . . 1 . . . . . . 2 . Assault 2 | . . . . 1 . . . . . . . . . 1 . Garrison 4 | . . . . 3 . . . . . . . . . 1 . Intercept . | . . . . . . . . . . . . . . . . Searches Triggered 2 | . . . . . . . . . . . . . . 2 . Construction Impeded 1 | . . . . . . . . . . . . . . 1 . Haulers Reinforced . | . . . . . . . . . . . . . . . . Active Scanning Responses . | . . . . . . . . . . . . . . . . Cargo Convoy Interrupts . | . . . . . . . . . . . . . . . . Stealth | -11 -10 -9 -8 -7 -7 -7 -6 -5 -4 -4 -4 -4 -3 -3 -2 --------- Run | Yrd Mat Mat Mat Fac Low Low Fac Fac Fac Upp Upp Zhi Pro Res Res Distress Signals 8 | . 1 1 2 . . . . . . . . . . 4 . Communications Jammed . | . . . . . . . . . . . . . . . . Distress Signals . | . . . . . . . . . . . . . . . . Times Spotted 208 | . 9 24 22 20 4 20 3 4 2 4 7 . 11 67 11 Peak Tracking Total 13 | . 5 5 6 4 4 4 1 3 1 3 4 . 6 13 11 Tactical Retreats 10 | . . 1 4 1 . . . 1 . . 1 . 1 . 1 Traps | -11 -10 -9 -8 -7 -7 -7 -6 -5 -4 -4 -4 -4 -3 -3 -2 ------- Run | Yrd Mat Mat Mat Fac Low Low Fac Fac Fac Upp Upp Zhi Pro Res Res Traps Triggered 2 | . . . . 1 . . . 1 . . . . . . . Indirectly . | . . . . . . . . . . . . . . . . Trap Hack Attempts . | . . . . . . . . . . . . . . . . Triggered . | . . . . . . . . . . . . . . . . Disarmed . | . . . . . . . . . . . . . . . . Reprogrammed . | . . . . . . . . . . . . . . . . Reused . | . . . . . . . . . . . . . . . . Traps Extracted . | . . . . . . . . . . . . . . . . Installed . | . . . . . . . . . . . . . . . . Triggered . | . . . . . . . . . . . . . . . . Machines | -11 -10 -9 -8 -7 -7 -7 -6 -5 -4 -4 -4 -4 -3 -3 -2 ---------- Run | Yrd Mat Mat Mat Fac Low Low Fac Fac Fac Upp Upp Zhi Pro Res Res Machines Disabled 34 | . . . 2 21 . . 2 1 . . . . . 8 . Max in Single Turn 15 | . . . 1 15 . . 1 1 . . . . . 1 . Garrison Access 1 | . . . . 1 . . . . . . . . . . . Machines Repaired . | . . . . . . . . . . . . . . . . Machines Dismantled . | . . . . . . . . . . . . . . . . Machines Sabotaged . | . . . . . . . . . . . . . . . . Overloaded Fab Kills . | . . . . . . . . . . . . . . . . Hacking | -11 -10 -9 -8 -7 -7 -7 -6 -5 -4 -4 -4 -4 -3 -3 -2 --------- Run | Yrd Mat Mat Mat Fac Low Low Fac Fac Fac Upp Upp Zhi Pro Res Res Machines Accessed 43 | . 4 6 7 12 . 1 3 2 . 2 . . . 6 . Terminals 18 | . 4 3 3 4 . . 1 1 . . . . . 2 . Fabricators 4 | . . . . 3 . . . . . . . . . 1 . Repair Stations 6 | . . 1 2 1 . . . 1 . . . . . 1 . Recycling Units 4 | . . 1 . 1 . . 1 . . . . . . 1 . Scanalyzers 5 | . . 1 1 1 . . 1 . . . . . . 1 . Garrison Access 3 | . . . 1 2 . . . . . . . . . . . Total Hacks 110 | . 12 15 26 30 . 1 7 5 . 6 . . . 8 . Successful 65 | . 5 11 20 11 . 1 6 3 . 6 . . . 2 . Failed 43 | . 7 3 6 18 . . 1 2 . . . . . 6 . Catastrophic 11 | . . . . 6 . . . 1 . . . . . 4 . Database Lockouts 2 | . . 1 . 1 . . . . . . . . . . . Manual 31 | . 6 2 5 14 . . 3 . . . . . . 1 . Terminals 42 | . 12 4 10 10 . . 2 1 . . . . . 3 . Fabricators 8 | . . . . 7 . . . . . . . . . 1 . Repair Stations 26 | . . 8 11 2 . . . 4 . . . . . 1 . Recycling Units 9 | . . 1 . 4 . . 2 . . . . . . 2 . Scanalyzers 12 | . . 2 3 3 . . 3 . . . . . . 1 . Garrison Access 6 | . . . 2 4 . . . . . . . . . . . Terminal Hacks 15 | . 2 1 4 . . 1 . . . 6 . . . 1 . Record 5 | . . . . . . . . . . 5 . . . . . Prototype ID Bank 1 | . . . 1 . . . . . . . . . . . . Open Door 2 | . . . . . . 1 . . . 1 . . . . . Branch Access Points 1 | . . 1 . . . . . . . . . . . . . Terminal Index 1 | . . . 1 . . . . . . . . . . . . Scanalyzer Index 1 | . . . 1 . . . . . . . . . . . . Unreport Threat 1 | . . . . . . . . . . . . . . 1 . Locate Traps 1 | . . . 1 . . . . . . . . . . . . Hauler Manifests 1 | . 1 . . . . . . . . . . . . . . Registered Components 1 | . 1 . . . . . . . . . . . . . . Fabricator Hacks 1 | . . . . 1 . . . . . . . . . . . Network Status 1 | . . . . 1 . . . . . . . . . . . Repair Station Hacks 21 | . . 7 10 1 . . . 3 . . . . . . . Scan Component 12 | . . 4 5 1 . . . 2 . . . . . . . Repair 9 | . . 3 5 . . . . 1 . . . . . . . Recycling Unit Hacks 4 | . . . . 2 . . 1 . . . . . . 1 . Process 1 | . . . . 1 . . . . . . . . . . . Report Inventory 2 | . . . . . . . 1 . . . . . . 1 . Retrieve Matter 1 | . . . . 1 . . . . . . . . . . . Scanalyzer 8 | . . 1 3 1 . . 3 . . . . . . . . Retrieve Study 8 | . . 1 3 1 . . 3 . . . . . . . . Garrison Access Hacks 1 | . . . . 1 . . . . . . . . . . . Seal Access 1 | . . . . 1 . . . . . . . . . . . Unauthorized Hacks 15 | . 3 2 3 5 . . 2 . . . . . . . . Terminals 11 | . 3 1 3 3 . . 1 . . . . . . . . Botnet 11 | . 3 1 3 3 . . 1 . . . . . . . . Fabricators 2 | . . . . 2 . . . . . . . . . . . Fabnet 1 | . . . . 1 . . . . . . . . . . . Haulers 1 | . . . . 1 . . . . . . . . . . . Repair Stations . | . . . . . . . . . . . . . . . . Recycling Units 2 | . . 1 . . . . 1 . . . . . . . . Tunnel 2 | . . 1 . . . . 1 . . . . . . . . Scanalyzers . | . . . . . . . . . . . . . . . . Garrison Access . | . . . . . . . . . . . . . . . . Data Cores Recovered . | . . . . . . . . . . . . . . . . Used . | . . . . . . . . . . . . . . . . Hacking Detections 33 | . 4 3 6 10 . . 2 2 . . . . . 6 . Full Trace Events 1 | . . . . . . . . 1 . . . . . . . Feedback Events 1 | . . . . . . . . 1 . . . . . . . Corruption 1 | . . . . . . . . 1 . . . . . . . Feedback Blocked . | . . . . . . . . . . . . . . . . Robot Schematics Acquired . | . . . . . . . . . . . . . . . . Robots Built . | . . . . . . . . . . . . . . . . Authchips . | . . . . . . . . . . . . . . . . Time . | . . . . . . . . . . . . . . . . Total Robot Build Rating . | . . . . . . . . . . . . . . . . Part Schematics Acquired . | . . . . . . . . . . . . . . . . Parts Built . | . . . . . . . . . . . . . . . . Authchips . | . . . . . . . . . . . . . . . . Time . | . . . . . . . . . . . . . . . . Total Part Build Rating . | . . . . . . . . . . . . . . . . Part Studies Acquired 8 | . . 1 3 1 . . 3 . . . . . . . . Parts Repaired 9 | . . 3 5 . . . . 1 . . . . . . . Time 265 | . . 100 130 . . . . 35 . . . . . . . Parts Recycled . | . . . . . . . . . . . . . . . . Recycled Matter 94 | . . . . 94 . . . . . . . . . . . Retrieved Matter 94 | . . . . 94 . . . . . . . . . . . Retrieved Components . | . . . . . . . . . . . . . . . . Parts Scanalyzed . | . . . . . . . . . . . . . . . . Part Schematics Acquired . | . . . . . . . . . . . . . . . . Parts Damaged . | . . . . . . . . . . . . . . . . Bothacking | -11 -10 -9 -8 -7 -7 -7 -6 -5 -4 -4 -4 -4 -3 -3 -2 ------------ Run | Yrd Mat Mat Mat Fac Low Low Fac Fac Fac Upp Upp Zhi Pro Res Res Used RIF Installer . | . . . . . . . . . . . . . . . . Robots Hacked 1 | . . . . . . . 1 . . . . . . . . Non-combat . | . . . . . . . . . . . . . . . . Combat 1 | . . . . . . . 1 . . . . . . . . Robot Hacks Applied . | . . . . . . . . . . . . . . . . Relay Couplers Released . | . . . . . . . . . . . . . . . . Fabnet Peak Effective % 3 | . . . . . . . 3 1 . . . . . . . Autooverrided 1 | . . . . . . . 1 . . . . . . . . Robots Rewired . | . . . . . . . . . . . . . . . . Allies Hacked . | . . . . . . . . . . . . . . . . Hacks Repelled . | . . . . . . . . . . . . . . . . Allies | -11 -10 -9 -8 -7 -7 -7 -6 -5 -4 -4 -4 -4 -3 -3 -2 -------- Run | Yrd Mat Mat Mat Fac Low Low Fac Fac Fac Upp Upp Zhi Pro Res Res Total Allies 1 | . . . . . . . 1 . . . . . . . . Largest Group 1 | . . . . . . . 1 . . . . . . . . Highest-Rated Group 29 | . . . . . . . 29 . . . . . . . . Highest-Rated Ally 29 | . . . . . . . 29 . . . . . . . . Total Orders . | . . . . . . . . . . . . . . . . Ally Attacks 8 | . . . . . . . 8 . . . . . . . . Total Damage 114 | . . . . . . . 114 . . . . . . . . Kills 1 | . . . . . . . 1 . . . . . . . . Allies Corrupted . | . . . . . . . . . . . . . . . . Allies Melted . | . . . . . . . . . . . . . . . . Intel | -11 -10 -9 -8 -7 -7 -7 -6 -5 -4 -4 -4 -4 -3 -3 -2 ------- Run | Yrd Mat Mat Mat Fac Low Low Fac Fac Fac Upp Upp Zhi Pro Res Res Active Infowar (turns) 8577 | . . . 814 1205 292 1634 537 441 281 575 754 33 711 1300 . Optics 6650 | . . . 814 1205 292 1634 537 441 281 575 754 33 84 . . Sensors 2927 | . . . 510 905 245 1267 . . . . . . . . . Seismic 3332 | . . . . . . . . . 230 554 627 33 644 1244 . Cloaking 56 | . . . . . . . . . . . . . . 56 . Robot Analysis Total . | . . . . . . . . . . . . . . . . Derelict Logs Recovered 4 | . . . . . . 2 . . . 2 . . . . . Drone Launches . | . . . . . . . . . . . . . . . . Drone Recoveries . | . . . . . . . . . . . . . . . . Exploration | -11 -10 -9 -8 -7 -7 -7 -6 -5 -4 -4 -4 -4 -3 -3 -2 ------------- Run | Yrd Mat Mat Mat Fac Low Low Fac Fac Fac Upp Upp Zhi Pro Res Res Turns Passed 11371 | 99 260 668 815 1205 292 1727 537 441 281 575 754 33 755 2208 721 Spaces Moved 6150 | 85 191 326 457 789 188 1074 224 223 153 413 447 17 311 1120 132 Core 132 | 1 . . . . . . . . . . . . . 1 130 Treads . | . . . . . . . . . . . . . . . . Legs . | . . . . . . . . . . . . . . . . Wheels 6018 | 84 191 326 457 789 188 1074 224 223 153 413 447 17 311 1119 2 Hover . | . . . . . . . . . . . . . . . . Flight . | . . . . . . . . . . . . . . . . Fastest Speed 50 | 50 90 90 110 100 135 135 210 150 150 128 128 165 165 135 50 Average Speed 148 | 99 99 104 114 121 135 143 210 150 164 133 143 165 207 150 505 Slowest Speed 2200 | 100 100 120 115 175 150 210 210 150 165 165 165 165 255 1950 2200 Overloaded Moves . | . . . . . . . . . . . . . . . . Propulsion Burnouts . | . . . . . . . . . . . . . . . . Robots Hopped . | . . . . . . . . . . . . . . . . Potential Cave-ins 37 | . . . . . . 31 . . . . 1 . 5 . . Cave-ins Triggered 5 | . . . . . . 4 . . . . 1 . . . . Exploration Rate (%) 30 | 5 47 37 33 26 42 75 7 7 6 55 59 7 49 35 5 Regions Visited 15 Branch Regions 6 Pre-discovered Areas 2 | . . 1 . . . . 1 . . . . . . . . Known Exits Taken 9 | . 1 1 1 1 1 1 1 . . . . . 1 1 . Unknown Exits Taken 6 | 1 . . . . . . . 1 1 1 1 1 . . . Scrap Searched 10 | . . . . . 3 4 . . . . 1 . 2 . . Spaces Dug 140 | . . . . 4 . 22 2 . 1 . 5 6 96 4 . Terrain Destroyed 610 | . 31 . . 69 22 97 3 6 2 6 30 6 139 199 . Melee 10 | . . . . 4 . . 1 . 1 . . . . 4 . Projectile 156 | . . . . 3 2 41 2 6 1 6 30 6 4 55 . AOE 444 | . 31 . . 62 20 56 . . . . . . 135 140 . Terrain Rammed . | . . . . . . . . . . . . . . . . Walls Destroyed . | . . . . . . . . . . . . . . . . Machines Disabled . | . . . . . . . . . . . . . . . . Actions | -11 -10 -9 -8 -7 -7 -7 -6 -5 -4 -4 -4 -4 -3 -3 -2 --------- Run | Yrd Mat Mat Mat Fac Low Low Fac Fac Fac Upp Upp Zhi Pro Res Res Total 7532 | 96 229 545 683 947 212 1180 261 317 178 426 509 18 366 1403 162 Wait 429 | . . 121 143 18 13 8 5 56 . 7 31 . . 26 1 Move 6131 | 84 190 325 456 788 187 1070 223 222 152 412 445 16 310 1119 132 Hop . | . . . . . . . . . . . . . . . . Pick Up 151 | 6 9 24 15 25 1 17 6 6 3 . . . 5 30 4 Fast Attach 65 | 6 1 5 6 13 1 1 1 4 4 1 . . 1 21 . Attach 70 | . . 7 4 8 . 10 3 2 3 . 2 . 14 12 5 Detach 18 | . . 1 . 4 . 1 1 1 3 . . . . 7 . Swap 128 | . 6 4 13 19 4 13 7 3 4 2 5 . 6 42 . Drop 121 | . 7 10 16 26 1 8 2 8 6 . 1 . . 35 1 Fire 390 | . 16 48 29 42 5 49 12 7 2 4 24 2 30 107 13 Melee 16 | . . . 1 4 . . 1 . 1 . . . . 4 5 Ram 1 | . . . . . . . . . . . . . . . 1 Kick . | . . . . . . . . . . . . . . . . Crush . | . . . . . . . . . . . . . . . . Escape Stasis 12 | . . . . . . 3 . 8 . . 1 . . . . Rewire . | . . . . . . . . . . . . . . . . Trap . | . . . . . . . . . . . . . . . . Miscellaneous . | . . . . . . . . . . . . . . . . Route ------- -11/Scrapyard -10/Materials -9/Materials (discovered 2 exits: *Mat / Min) -8/Materials -7/Factory -7/Lower Caves -7/Lower Caves -6/Factory -5/Factory -4/Factory -4/Upper Caves -4/Upper Caves -4/Zhirov -3/Proximity Caves -3/Research (discovered 2 exits: *Res / *Arm) -2/Research History --------- Turn | Location | Event 21 | -11/Scrapyard | Discovered new exit (range 15) 100 | -11/Scrapyard | Entered Materials 319 | -10/Materials | Discovered new exit (range 16) 324 | -10/Materials | Build established: Mutant 360 | -10/Materials | Identified exit to Materials 360 | -10/Materials | Entered another Materials area 360 | -9/Materials | Evolved 2 slots: Utility x1, Weapon x1 621 | -9/Materials | Lost 4 parts (1p1n2w) 657 | -9/Materials | Build established: Gunner 702 | -9/Materials | Discovered new exit (range 12) 745 | -9/Materials | Repaired Assault Rifle 785 | -9/Materials | Repaired Lgt. Nuclear Core 827 | -9/Materials | Repaired Broken Assault Rifle 904 | -9/Materials | Central database locked down 1022 | -9/Materials | Identified exit to Mines 1026 | -9/Materials | Identified exit to Materials 1028 | -9/Materials | Entered another Materials area 1028 | -8/Materials | Evolved 2 slots: Power x1, Utility x1 1117 | -8/Materials | Repaired Lgt. Armor Plating 1212 | -8/Materials | Repaired Wheel+ 1239 | -8/Materials | Repaired Assault Rifle+ 1266 | -8/Materials | Repaired Wheel+ 1316 | -8/Materials | Repaired Assault Rifle+ 1834 | -8/Materials | Discovered new exit (range 8) 1842 | -8/Materials | Identified exit to Factory 1843 | -8/Materials | Entered Factory 1843 | -7/Factory | Evolved 2 slots: Utility x1, Weapon x1 1889 | -7/Factory | Central database locked down 1973 | -7/Factory | Garrison activated, responded to threat 2744 | -7/Factory | Build established: Skirmisher 2840 | -7/Factory | Discovered new exit (range 19) 3011 | -7/Factory | Identified exit to Lower Caves 3043 | -7/Factory | First assault squad dispatched 3048 | -7/Factory | Entered Lower Caves 3312 | -7/Lower Caves | Discovered new exit (range 14) 3339 | -7/Lower Caves | Identified exit to Lower Caves 3340 | -7/Lower Caves | Entered another Lower Caves area 3445 | -7/Lower Caves | Discovered new exit (range 7) 3451 | -7/Lower Caves | Identified exit to Factory 4033 | -7/Lower Caves | Learned location of 1 exit from Factory 4112 | -7/Lower Caves | Learned Factory terminal intel 4750 | -7/Lower Caves | Crushed by falling debris 4752 | -7/Lower Caves | Crushed by falling debris 4752 | -7/Lower Caves | System corruption reached 10% 4761 | -7/Lower Caves | Crushed by falling debris 4762 | -7/Lower Caves | Core integrity fell below 50% 4765 | -7/Lower Caves | Crushed by falling debris 4796 | -7/Lower Caves | Lost 6 parts (1p2n3u) 5067 | -7/Lower Caves | Entered Factory 5067 | -6/Factory | Evolved 2 slots: Power x1, Utility x1 5068 | -6/Factory | Identified exit to Factory 5069 | -6/Factory | Loaded intel: 28 terminal locations 5089 | -6/Factory | Build established: Tank 5486 | -6/Factory | Found Powered Armor 5604 | -6/Factory | Entered another Factory area 5604 | -5/Factory | Evolved 2 slots: Propulsion x1, Utility x1 5841 | -5/Factory | Discovered new exit (range 12) 6020 | -5/Factory | Repaired Hvy. Deuterium Engine 6045 | -5/Factory | Entered another Factory area 6045 | -4/Factory | Evolved 2 slots: Utility x2 6196 | -4/Factory | Build established: Scavenger-Tank 6301 | -4/Factory | Discovered new exit (range 4) 6326 | -4/Factory | Entered Upper Caves 6421 | -4/Upper Caves | Learned location of 1 exit from Proximity Caves 6542 | -4/Upper Caves | Entered an active Warlord outpost 6567 | -4/Upper Caves | Learned Armory security intel 6567 | -4/Upper Caves | Learned Factory terminal intel 6630 | -4/Upper Caves | Learned Research trap positions 6893 | -4/Upper Caves | Discovered new exit (range 6) 6901 | -4/Upper Caves | Entered another Upper Caves area 7004 | -4/Upper Caves | Crushed by falling debris 7645 | -4/Upper Caves | Discovered new exit (range 5) 7655 | -4/Upper Caves | Entered Zhirov 7655 | -4/Zhirov | Discovered new exit (range 3) 7688 | -4/Zhirov | Entered Proximity Caves 7689 | -3/Proximity Caves | Identified exit to Research 7789 | -3/Proximity Caves | Spotter reported a threat 7804 | -3/Proximity Caves | Lost 16 parts (3p2n8u3w) 7970 | -3/Proximity Caves | Spotter reported a threat 7975 | -3/Proximity Caves | Spotter reported a threat 7993 | -3/Proximity Caves | Build established: Gunner 8422 | -3/Proximity Caves | Build established: Tank 8443 | -3/Proximity Caves | Entered Research 8443 | -3/Research | Evolved 2 slots: Utility x2 8444 | -3/Research | Loaded intel: 75 trap records 8587 | -3/Research | Found Adv. Powered Armor 8591 | -3/Research | Found Adv. Powered Armor 8595 | -3/Research | Found Adv. Powered Armor 8643 | -3/Research | Found Adv. Powered Armor 8645 | -3/Research | Found Adv. Powered Armor 8647 | -3/Research | Found Adv. Powered Armor 8650 | -3/Research | Found Adv. Powered Armor 8653 | -3/Research | Found Adv. Powered Armor 8693 | -3/Research | Search patrols dispatched 8899 | -3/Research | Build established: Scavenger-Tank 8943 | -3/Research | Search patrols dispatched 9622 | -3/Research | Found Fusion Bomb Launcher 10160 | -3/Research | System corruption reached 10% 10193 | -3/Research | First assault squad dispatched 10300 | -3/Research | Discovered new exit (range 5) 10334 | -3/Research | Identified exit to Armory 10514 | -3/Research | Discovered new exit (range 16) 10583 | -3/Research | Destroyed 8 combat bots 10583 | -3/Research | Garrison activated, responded to threat 10649 | -3/Research | Identified exit to Research 10651 | -3/Research | Entered another Research area 10651 | -2/Research | Evolved 2 slots: Propulsion x1, Utility x1 10682 | -2/Research | Lost 20 parts (2p4n9u5w) 10883 | -2/Research | Build established: Mutant 11307 | -2/Research | System corruption reached 10% 11318 | -2/Research | Released all parts (5) 11343 | -2/Research | Lost 7 parts (1p1n3u2w) 11351 | -2/Research | Core integrity fell below 50% 11367 | -2/Research | Core integrity fell below 20% 11372 | -2/Research | Destroyed by S-43 Plague with Heavy Machine Gun Last Messages --------------- 11312_ Com. Wheel+ destroyed. 11313_ 9G:ATOVH%TKH RE4K